bitfinex/quotes_ETHUSD_20240716
["timestamp","ask_amount","ask_price","bid_price","bid_amount"]
[1721151099642,2.95991396,3462.5,3462.4,2.45]
[1721151101099,2.88826,3462.3,3461.7,2.45]
[1721151101301,2.88826,3462.3,3461.5,2.88891]
[1721151101503,2.88826,3462.3,3461.7,2.45]
[1721151101504,3.47167131,3462.2,3461.7,2.45]
[1721151101807,2.88843,3462.1,3461.7,2.45]
[1721151102011,2.95968435,3462.0,3461.7,2.45]
[1721151102221,5.84818435,3462.0,3461.7,2.45]
[1721151102603,2.88859,3461.9,3461.7,2.45]
[1721151102841,0.55,3461.8,3461.7,2.45]
[1721151103135,0.5830675,3461.8,3461.7,2.45]
[1721151103438,2.88881,3461.7,3461.3,2.45]
[1721151103731,2.88894,3461.5,3461.3,2.45]
[1721151103897,0.55,3461.4,3461.3,2.45]
[1721151104301,0.58294863,3461.4,3461.3,2.45]
[1721151104501,3.47194863,3461.4,3460.9,2.45]
[1721151104741,2.88918,3461.2,3460.9,2.45]
[1721151105037,0.03282166,3461.1,3460.9,2.45]
[1721151105241,3.43909,3461.3,3460.9,2.45]
[1721151105533,2.445,3461.1,3460.9,2.45]
[1721151105739,0.55,3461.0,3460.9,2.45]
[1721151106333,0.58281965,3461.0,3460.9,2.45]
[1721151107036,0.57281965,3461.0,3460.9,2.45]
[1721151107808,0.03281965,3461.0,3460.9,5.33942]
[1721151108030,2.4662,3461.6,3460.9,5.873362]
[1721151108333,5.4662,3461.6,3461.4,2.45]
[1721151108517,2.4662,3461.6,3461.4,2.45]
[1721151109132,5.4662,3461.6,3461.4,2.45]
[1721151109497,2.4662,3461.6,3461.4,2.45]
[1721151109904,0.55,3461.5,3461.4,2.45]
[1721151110803,3.55,3461.7,3461.4,2.45]
[1721151111004,6.43876,3461.7,3461.4,2.45]
[1721151111941,3.55,3461.7,3461.4,2.45]
[1721151112124,0.55,3461.7,3461.4,2.45]
[1721151112434,5.1783,3462.3,3461.4,5.33892]
[1721151112738,3.0,3462.2,3461.8,2.45]
[1721151112935,2.88833,3462.2,3461.8,2.45]
[1721151113142,2.88833,3462.2,3461.4,5.33892]
[1721151113844,3.43845,3462.1,3461.4,2.45]
[1721151114338,3.0,3462.0,3461.4,2.45]
[1721151114726,3.0,3462.0,3461.5,2.88887]
[1721151114941,2.4913,3462.8,3461.8,2.45]
[1721151115237,2.4913,3462.8,3462.4,2.45]
[1721151115935,2.88797,3462.7,3462.4,2.45]
[1721151116244,2.87797,3462.7,3462.4,2.45]
[1721151116613,0.55,3462.6,3462.4,2.45]
[1721151118244,3.0,3462.7,3462.4,2.45]
[1721151118410,3.0,3463.0,3462.4,2.45]
[1721151118609,3.0,3463.1,3462.4,2.45]
[1721151118925,5.8876,3463.1,3462.4,2.45]
[1721151119121,0.0329446,3463.0,3462.4,2.45]
[1721151119331,2.88788,3462.8,3462.4,2.45]
[1721151119637,3.03295064,3462.7,3462.4,2.45]
[1721151119942,0.55,3462.6,3462.4,2.45]
[1721151120644,0.03295064,3462.5,3462.4,2.45]
[1721151122242,0.03295064,3462.5,3462.4,5.872011]
[1721151122446,5.3501,3463.2,3462.4,5.872011]
[1721151122742,0.03295266,3462.5,3462.4,3.422011]
[1721151122909,0.55,3463.1,3462.4,5.872011]
[1721151123109,0.55,3463.1,3462.8,2.45]
[1721151123342,0.55,3463.2,3462.8,2.45]
[1721151123943,3.55,3463.2,3462.8,2.45]
[1721151124558,3.55,3463.2,3462.4,2.88817]
[1721151124559,2.4321,3463.1,3462.4,2.45]
[1721151124719,5.31971,3463.1,3462.4,2.45]
[1721151124922,2.88793,3462.7,3462.4,2.45]
[1721151125159,2.88801,3462.6,3462.0,2.45]
[1721151125461,2.88818,3462.4,3462.0,2.45]
[1721151125655,2.88839,3462.2,3461.6,2.45]
[1721151125969,0.55,3462.1,3461.6,2.45]
[1721151126176,2.8886,3461.9,3461.6,2.45]
[1721151126322,0.55,3461.8,3461.6,2.45]
[1721151126519,3.43872,3461.8,3461.6,2.45]
[1721151126746,3.43872,3461.8,3461.2,2.45]
[1721151126954,2.88896,3461.5,3460.9,2.45]
[1721151127161,3.4387,3461.8,3461.3,2.45]
[1721151127330,2.88877,3461.7,3461.3,2.45]
[1721151127535,3.4387,3461.8,3461.3,2.45]
[1721151127536,3.43884,3461.6,3461.3,2.45]
[1721151127842,2.889,3461.4,3461.3,2.45]
[1721151128259,3.439,3461.4,3461.3,2.45]
[1721151128953,0.55,3461.4,3461.3,2.45]
[1721151129152,0.55,3461.5,3461.3,2.45]
[1721151129362,3.43897,3461.5,3461.3,2.45]
[1721151129875,3.0,3462.1,3461.3,5.584]
[1721151130020,3.0,3462.2,3462.0,2.45]
[1721151130218,5.88801,3462.6,3462.0,2.45]
[1721151130459,5.88801,3462.6,3462.2,2.45]
[1721151130759,2.8881,3462.5,3462.2,2.45]
[1721151130924,3.0,3462.4,3462.2,2.45]
[1721151131130,5.36157,3462.7,3462.2,2.45]
[1721151131674,2.888,3462.6,3462.2,2.45]
[1721151131964,2.4736,3462.7,3462.2,2.45]
[1721151131965,2.88817,3462.4,3462.2,2.45]
[1721151132470,1.7,3462.8,3461.3,3.13407]
[1721151132471,2.88858,3461.9,3461.3,2.45]
[1721151132966,0.55,3461.8,3461.3,2.45]
[1721151133347,0.55,3461.8,3461.7,2.45]
[1721151133548,6.43842,3462.1,3461.7,2.45]
[1721151134058,0.0305619,3462.0,3461.7,2.45]
[1721151134554,3.0305619,3462.0,3461.7,2.45]
[1721151134861,0.0305619,3462.0,3461.7,2.45]
[1721151135033,3.0,3462.4,3461.8,0.533876]
[1721151135365,2.88834,3462.2,3461.7,2.45]
[1721151135566,0.55,3462.1,3461.7,2.45]
[1721151135951,0.0305619,3462.0,3461.7,2.45]
[1721151137379,0.55,3462.1,3461.7,2.45]
[1721151137569,0.0305619,3461.9,3461.7,2.45]
[1721151137745,0.55,3462.1,3461.7,2.45]
[1721151137945,0.0305619,3461.8,3461.7,2.45]
[1721151138154,3.43834,3462.2,3461.7,2.45]
[1721151138349,0.0305619,3461.8,3461.7,2.45]
[1721151138567,3.0364,3462.2,3461.7,2.45]
[1721151138770,0.0305619,3461.8,3461.7,2.45]
[1721151139083,5.92478,3462.2,3461.7,2.45]
[1721151139237,2.8885,3462.0,3461.7,2.45]
[1721151139435,0.55,3461.9,3461.7,2.45]
[1721151139639,0.03064252,3461.8,3461.7,2.45]
[1721151139880,0.55,3462.0,3461.7,2.695]
[1721151140076,0.03064252,3461.9,3461.7,2.695]
[1721151140443,0.03064252,3461.9,3461.7,2.45]
[1721151140654,2.88851,3462.0,3461.7,2.45]
[1721151140941,0.58063445,3461.9,3461.7,2.45]
[1721151141450,2.88888,3461.6,3460.9,2.45]
[1721151141747,0.03062841,3461.5,3460.9,2.45]
[1721151142173,0.58062841,3461.5,3461.3,2.45]
[1721151142556,0.03062841,3461.5,3461.3,2.45]
[1721151144378,2.91954841,3461.5,3461.3,2.45]
[1721151144552,0.55,3461.4,3461.3,2.45]
[1721151144958,0.58050751,3461.4,3461.3,2.45]
[1721151145161,0.58050751,3461.4,3460.9,2.45]
[1721151145679,2.8893,3461.1,3460.5,2.45]
[1721151145881,0.58047929,3461.0,3460.5,2.45]
[1721151146577,3.46982929,3461.0,3460.5,2.45]
[1721151148055,0.58047929,3461.0,3460.5,2.45]
[1721151148261,0.58047929,3461.0,3459.9,6.91092965]
[1721151148262,2.88963,3460.7,3460.1,2.45]
[1721151148445,0.03029181,3460.6,3460.1,2.45]
[1721151148951,0.58029181,3460.6,3460.1,2.45]
[1721151150097,0.58029181,3460.6,3460.1,3.67511697]
[1721151150263,0.03029181,3460.6,3460.1,3.67511697]
[1721151150445,0.03029181,3460.6,3460.5,2.45]
[1721151151948,2.88895,3461.5,3460.6,2.88961]
[1721151152294,5.91907002,3461.4,3460.9,2.45]
[1721151152471,3.0,3461.3,3460.9,2.45]
[1721151152653,2.91934422,3461.2,3460.9,2.45]
[1721151152856,0.03009422,3461.2,3460.5,2.45]
[1721151153272,2.88923,3461.2,3460.5,2.45]
[1721151153593,0.03015268,3461.1,3460.9,2.45]
[1721151154009,3.43905,3461.4,3460.5,2.45]
[1721151154173,0.03015268,3461.0,3460.5,6.162646]
[1721151154498,0.03015268,3460.9,3460.6,2.88967]
[1721151154858,0.55,3461.2,3460.6,2.88967]
[1721151155053,0.03015268,3461.1,3460.5,6.162646]
[1721151155275,0.03015268,3461.1,3460.9,2.45]
[1721151155483,10.23867,3461.8,3460.9,5.33941]
[1721151155484,3.0,3461.7,3460.9,5.33941]
[1721151155684,0.58018696,3461.6,3461.3,2.45]
[1721151155890,0.03018696,3461.6,3461.3,2.45]
[1721151156095,0.03018696,3461.6,3461.3,5.339]
[1721151156264,1.28,3462.1,3461.4,0.822825]
[1721151156473,0.03018696,3462.0,3461.4,0.822825]
[1721151156664,0.03018696,3462.0,3461.3,2.45]
[1721151156987,2.88862,3461.9,3461.3,2.45]
[1721151157192,2.88867,3461.8,3460.9,2.45]
[1721151157494,2.8889,3461.6,3460.9,2.45]
[1721151157655,0.55,3461.5,3461.0,1.050744]
[1721151157858,0.03031196,3461.4,3461.0,1.050744]
[1721151158259,0.03031196,3461.4,3461.0,3.939994]
[1721151158603,3.0,3461.9,3461.2,2.88916]
[1721151158900,0.55,3461.8,3461.2,2.88916]
[1721151159100,0.58034422,3461.8,3461.2,3.66662]
[1721151159477,0.03034422,3461.8,3461.3,2.45]
[1721151159704,8.34575,3462.3,3461.5,2.88891]
[1721151160010,8.34575,3462.3,3461.5,5.912001]
[1721151160011,0.03041279,3461.7,3461.5,5.912001]
[1721151160308,2.88825,3462.3,3461.5,5.912001]
[1721151160309,0.03041279,3461.6,3461.5,3.023091]
[1721151160601,0.03041279,3461.6,3461.5,5.912011]
[1721151160814,4.37294255,3462.7,3461.6,2.88878]
[1721151161020,0.55,3462.6,3461.7,6.2188191]
[1721151161245,3.58041279,3462.6,3461.7,6.2188191]
[1721151161690,2.8881,3462.5,3461.7,6.2188191]
[1721151161895,0.58048935,3462.4,3461.7,6.2188191]
[1721151162288,0.55,3462.3,3461.7,6.2188191]
[1721151162502,0.55,3462.5,3461.8,1.15967991]
[1721151162828,0.03048935,3462.2,3461.8,4.10609035]
[1721151162992,2.8877,3463.0,3462.2,2.45]
[1721151163204,2.88788,3462.8,3462.2,2.45]
[1721151163585,0.03054175,3462.7,3462.2,2.45]
[1721151164440,3.03054175,3462.7,3462.2,2.45]
[1721151164714,2.91846175,3462.7,3462.2,2.45]
[1721151165014,2.91846175,3462.7,3461.5,2.4892]
[1721151165015,0.55,3462.6,3461.5,2.4892]
[1721151165189,0.55,3462.6,3461.4,2.45]
[1721151165190,2.88834,3462.2,3461.4,2.45]
[1721151165389,0.55,3462.1,3461.4,2.45]
[1721151165604,0.55,3462.1,3461.4,3.224423]
[1721151165802,2.91918888,3462.0,3461.4,3.224423]
[1721151166017,0.55,3461.9,3461.4,2.45]
[1721151166525,0.03068888,3461.8,3461.4,2.45]
[1721151166683,0.03068888,3461.8,3461.5,2.88887]
[1721151166886,0.03068888,3461.8,3461.7,2.88875]
[1721151167103,3.0,3462.5,3461.4,2.45]
[1721151167305,5.88775,3462.9,3462.1,2.45]
[1721151167489,0.03054581,3462.4,3462.1,2.45]
[1721151167813,0.03054581,3462.3,3462.1,2.45]
[1721151168006,3.0,3462.8,3462.1,2.45]
[1721151168200,0.03054581,3462.7,3462.1,2.45]
[1721151168916,0.58054581,3462.7,3462.1,2.45]
[1721151170203,0.57054581,3462.7,3462.1,5.33841]
[1721151170515,0.58021247,3462.7,3462.1,5.33841]
[1721151170822,0.58021247,3462.7,3462.1,6.161094]
[1721151171000,0.03021247,3462.7,3462.5,2.45]
[1721151171187,2.8875,3463.2,3462.5,2.45]
[1721151171188,5.8875,3463.2,3462.5,2.45]
[1721151171387,0.58029307,3463.1,3462.5,2.45]
[1721151171605,0.57029307,3463.1,3462.5,2.45]
[1721151171818,3.45789307,3463.1,3462.5,2.45]
[1721151172123,3.0,3463.0,3462.5,2.45]
[1721151172519,0.03025641,3462.9,3462.5,2.45]
[1721151172911,2.8876,3463.1,3462.5,2.45]
[1721151173119,0.03024724,3462.8,3462.5,2.45]
[1721151173312,2.8876,3463.1,3462.5,2.45]
[1721151173921,0.58024724,3463.0,3462.5,2.45]
[1721151174593,0.03024724,3463.0,3462.5,5.33805]
[1721151174789,0.03024724,3463.0,3462.5,6.408293]
[1721151175221,0.55,3463.2,3462.5,6.408293]
[1721151175534,0.03021484,3463.1,3462.5,5.33805]
[1721151175830,0.03021484,3463.1,3462.7,2.88791]
[1721151175987,5.88731,3463.5,3462.7,2.88791]
[1721151176323,0.58037401,3463.4,3462.7,2.88791]
[1721151176625,3.46770401,3463.4,3462.5,8.22606]
[1721151176925,3.0,3463.3,3462.6,2.88794]
[1721151177295,0.03035276,3463.2,3462.6,2.88794]
[1721151178232,0.03035276,3463.2,3462.9,2.45]
[1721151178387,3.0,3463.7,3462.9,5.33772]
[1721151178584,0.58037987,3463.6,3462.9,5.33772]
[1721151178812,0.58037987,3463.6,3463.0,2.88759]
[1721151179146,0.58037987,3463.6,3462.4,2.88813]
[1721151179147,0.03037987,3463.6,3463.4,5.22128]
[1721151179306,0.03037987,3463.6,3463.5,2.88725]
[1721151179492,2.88652,3464.4,3463.6,2.88715]
[1721151179818,2.91697987,3464.3,3463.6,2.88715]
[1721151180121,2.91697987,3464.3,3463.4,5.22127]
[1721151180421,2.91697987,3464.3,3463.4,5.22126]
[1721151180596,2.88684,3464.0,3463.3,2.45]
[1721151180795,0.03056915,3463.9,3463.5,2.88723]
[1721151181119,3.0,3464.2,3463.6,2.88712]
[1721151181320,0.03056915,3463.8,3463.7,7.67108]
[1721151181508,2.88609,3464.9,3463.7,4.784]
[1721151181694,0.03079868,3464.8,3464.2,2.45]
[1721151181894,2.88578,3465.3,3464.2,2.45]
[1721151181895,2.88578,3465.3,3464.3,2.88656]
[1721151182125,0.03079868,3464.7,3464.3,2.88656]
[1721151182323,2.88578,3465.3,3464.4,2.88649]
[1721151182524,2.88578,3465.3,3463.7,5.22103]
[1721151182525,2.88542,3465.7,3464.8,5.33611]
[1721151182731,0.03079868,3465.2,3464.8,5.33611]
[1721151182898,2.88551,3465.6,3464.8,2.45]
[1721151183093,0.03091542,3465.5,3464.8,2.45]
[1721151184008,0.03091542,3465.5,3464.8,5.33615]
[1721151184189,2.88572,3465.4,3464.8,2.45]
[1721151184589,0.03091542,3465.3,3464.8,2.45]
[1721151184789,0.58091542,3465.3,3464.8,2.45]
[1721151185413,3.46666542,3465.3,3464.8,2.45]
[1721151186527,0.58091542,3465.3,3464.8,2.45]
[1721151186697,0.03091542,3465.3,3464.8,2.45]
[1721151186899,5.88537,3465.8,3464.8,2.45]
[1721151186900,6.43556,3465.6,3464.8,2.45]
[1721151187220,0.03091542,3465.5,3464.8,5.33615]
[1721151187931,2.91652542,3465.5,3464.8,2.45]
[1721151188106,0.55,3465.4,3464.8,2.45]
[1721151188303,0.03113474,3465.3,3464.8,2.45]
[1721151188711,2.91693474,3465.3,3464.8,2.45]
[1721151188906,0.55,3465.2,3464.8,2.45]
[1721151189116,0.03113876,3465.1,3464.8,2.45]
[1721151190697,0.03113876,3465.1,3464.4,2.45]
[1721151190899,0.03113876,3465.1,3464.2,2.2685]
[1721151190900,2.88613,3464.9,3464.2,2.2685]
[1721151191330,0.58113876,3464.8,3464.2,2.2685]
[1721151191922,3.46731876,3464.8,3464.1,6.91092965]
[1721151192319,3.46731876,3464.8,3464.1,9.79764965]
[1721151192538,3.46731876,3464.8,3464.1,6.91092965]
[1721151192700,3.46731876,3464.8,3464.0,5.33681]
[1721151192904,3.46731876,3464.8,3464.1,2.88672]
[1721151193135,0.58113876,3464.8,3464.1,2.88672]
[1721151193929,3.46730876,3464.8,3464.0,2.45]
[1721151194137,0.03113876,3464.8,3464.4,5.33649]
[1721151194348,0.03113876,3464.8,3464.5,3.110814]
[1721151194504,5.88555,3465.6,3464.7,2.88625]
[1721151194839,2.91680116,3465.5,3465.0,2.45]
[1721151195241,2.88586,3465.2,3465.0,2.45]
[1721151195428,2.88586,3465.2,3464.6,2.45]
[1721151195636,2.886,3465.0,3464.6,2.45]
[1721151195933,2.88592,3465.1,3464.3,6.91092965]
[1721151196108,0.0312233,3464.9,3464.2,2.45]
[1721151196309,2.88613,3464.9,3464.2,2.45]
[1721151196640,0.5812233,3464.8,3463.8,2.45]
[1721151196848,2.88651,3464.4,3463.8,2.45]
[1721151197003,2.88682,3464.1,3463.4,2.45]
[1721151197206,2.88693,3463.9,3463.4,2.45]
[1721151197541,0.5812032,3463.8,3463.4,2.45]
[1721151197740,2.88723,3463.6,3463.4,2.45]
[1721151197908,0.55,3463.5,3463.0,2.45]
[1721151198306,0.0312032,3463.4,3463.0,2.45]
[1721151198505,0.0312032,3463.4,3462.6,2.396]
[1721151198506,0.0312032,3463.4,3462.6,4.846]
[1721151198808,2.88742,3463.3,3462.6,4.846]
[1721151199008,0.58109253,3463.2,3462.6,7.73399]
[1721151199206,0.55,3463.5,3462.6,8.796197]
[1721151199537,0.03109253,3463.4,3462.6,8.796197]
[1721151199907,0.03109253,3463.4,3463.0,2.45]
[1721151200256,0.03109253,3463.3,3463.0,3.271]
[1721151200420,0.55,3463.9,3463.0,3.271]
[1721151200631,2.88722,3463.6,3463.0,3.271]
[1721151200930,0.03109253,3463.8,3462.7,2.8879]
[1721151200931,3.43731,3463.5,3462.7,2.8879]
[1721151201107,3.43731,3463.5,3462.5,3.271]
[1721151201108,2.88759,3463.1,3462.5,3.271]
[1721151201311,2.88759,3463.1,3462.2,2.88826]
[1721151201312,0.55,3463.0,3462.2,2.88826]
[1721151201646,3.43767,3463.0,3462.1,3.711034]
[1721151201818,0.03062755,3462.9,3462.1,3.711094]
[1721151202020,3.43767,3463.0,3462.0,5.6648]
[1721151202021,0.55,3463.0,3462.0,5.6648]
[1721151202249,0.55,3463.0,3461.2,3.271]
[1721151202250,2.88805,3462.6,3461.7,2.88875]
[1721151202543,2.88805,3462.6,3461.6,2.3141]
[1721151202544,2.88817,3462.4,3461.5,3.271]
[1721151202741,2.88835,3462.2,3461.5,3.271]
[1721151203110,0.55,3462.1,3461.5,3.271]
[1721151203306,0.58050671,3462.1,3461.5,6.48427776]
[1721151203512,0.55,3462.3,3461.5,6.48427776]
[1721151203738,0.03043621,3462.0,3461.5,6.48427776]
[1721151203957,0.55,3462.3,3461.5,6.48427776]
[1721151204445,0.03043621,3462.2,3461.5,6.48427776]
[1721151204623,0.55,3462.3,3461.5,6.48427776]
[1721151204816,0.03043621,3462.2,3461.5,6.48427776]
[1721151205020,3.0,3462.9,3461.8,2.88867]
[1721151205021,0.55,3462.5,3461.8,2.88867]
[1721151205217,0.03037979,3462.4,3461.8,2.88867]
[1721151207353,0.58016429,3462.5,3461.9,2.88858]
[1721151207559,0.58016429,3462.5,3461.7,2.8887]
[1721151208055,0.58016429,3462.5,3461.8,2.88859]
[1721151209572,0.58016429,3462.5,3461.9,2.88857]
[1721151211556,0.03016429,3462.5,3461.9,2.88857]
[1721151211925,3.0,3462.7,3461.9,2.88857]
[1721151212132,0.58016026,3462.6,3461.9,2.88857]
[1721151212462,0.58016026,3462.6,3461.7,3.793557]
[1721151212764,3.46816026,3462.6,3461.7,2.88869]
[1721151212952,2.3408,3462.5,3461.7,2.88869]
[1721151213335,0.03018042,3462.4,3461.7,2.88869]
[1721151213517,0.03018042,3462.4,3461.8,2.88866]
[1721151214082,0.03018042,3462.4,3461.6,2.88877]
[1721151214361,3.46835042,3462.4,3461.7,2.88874]
[1721151215424,0.58018042,3462.4,3461.7,3.793591]
[1721151215829,0.55,3462.3,3461.7,3.793591]
[1721151216051,0.03009159,3462.2,3461.8,2.88865]
[1721151216254,0.03009159,3462.2,3461.9,2.88853]
[1721151216474,0.55,3462.6,3461.9,2.88853]
[1721151216642,0.03009159,3462.1,3461.9,2.88853]
[1721151216838,0.55,3462.6,3462.0,0.6682031]
[1721151217339,0.55,3462.7,3462.0,0.6682031]
[1721151217742,3.43792,3462.7,3461.9,2.88853]
[1721151218069,2.88808,3462.5,3461.7,3.793591]
[1721151218269,2.88831,3462.3,3461.5,3.271]
[1721151218483,3.43833,3462.2,3461.5,3.271]
[1721151218771,2.4793,3462.1,3461.5,3.271]
[1721151218929,0.55,3462.0,3461.5,3.271]
[1721151220052,0.55,3462.0,3461.2,2.88916]
[1721151220255,3.43851,3462.0,3461.2,2.88916]
[1721151222187,0.55,3462.0,3461.3,2.88908]
[1721151222518,3.4385,3462.0,3461.3,5.34508]
[1721151222784,2.88859,3461.9,3461.3,2.456]
[1721151223072,0.55,3461.8,3461.3,2.456]
[1721151223641,3.43851,3462.0,3461.3,2.456]
[1721151223840,3.43851,3462.0,3461.3,3.3708943]
[1721151224048,0.02987595,3461.9,3461.3,3.3708943]
[1721151224968,0.02987595,3461.9,3461.3,6.2599443]
[1721151225198,0.02987595,3461.9,3461.7,5.34474]
[1721151225859,0.02995454,3461.8,3461.7,5.34474]
[1721151226259,5.88817,3462.4,3461.7,5.95455112]
[1721151226590,2.88845,3462.1,3461.7,2.456]
[1721151226884,0.55,3462.0,3461.7,2.456]
[1721151227266,0.02994446,3461.9,3461.7,2.456]
[1721151227658,3.43839,3462.2,3461.7,2.456]
[1721151227868,0.02994446,3461.8,3461.7,2.456]
[1721151228072,2.88844,3462.1,3461.7,2.456]
[1721151228280,0.02994446,3461.8,3461.3,5.34507]
[1721151228495,2.336,3461.9,3461.3,2.456]
[1721151228659,0.02993035,3461.7,3461.3,2.456]
[1721151228864,2.336,3461.9,3461.4,2.88899]
[1721151229066,0.02993035,3461.6,3461.3,2.456]
[1721151229381,0.02992632,3461.5,3461.3,2.456]
[1721151229562,0.02992632,3461.5,3461.3,5.34506]
[1721151229764,2.336,3461.9,3461.3,6.168481]
[1721151229965,0.02992632,3461.4,3461.3,6.168481]
[1721151230178,2.336,3461.9,3461.3,6.168481]
[1721151230382,2.336,3461.9,3461.3,5.34508]
[1721151230964,2.336,3461.9,3461.3,8.23416]
[1721151231177,2.336,3461.9,3461.3,5.34508]
[1721151231374,0.55,3461.8,3461.3,5.34508]
[1721151231575,0.55,3461.8,3461.3,2.456]
[1721151233332,0.55,3461.8,3461.3,5.34508]
[1721151235321,0.55,3461.8,3461.3,6.168509]
[1721151236031,5.465,3462.4,3461.7,2.8887]
[1721151236186,2.465,3462.4,3461.8,2.88862]
[1721151236387,3.0,3462.3,3461.8,2.88862]
[1721151236835,2.465,3462.4,3461.8,2.88862]
[1721151237185,2.465,3462.4,3461.7,2.456]
[1721151237186,2.88836,3462.2,3461.7,2.456]
[1721151237384,0.55,3462.1,3461.4,2.88893]
[1721151237623,3.43842,3462.1,3461.4,2.88893]
[1721151238505,0.55,3462.1,3461.5,2.88891]
[1721151238696,5.35322,3462.4,3461.6,2.88879]
[1721151238897,6.46814595,3462.3,3461.6,2.88879]
[1721151240208,6.46814595,3462.3,3461.6,2.88876]
[1721151241532,6.46814595,3462.3,3461.7,5.34472]
[1721151241533,3.57989595,3462.3,3461.7,5.34472]
[1721151242001,3.57989595,3462.3,3461.7,2.456]
[1721151242002,0.02989595,3462.3,3461.7,2.456]
[1721151242335,2.3076,3462.8,3462.0,2.88843]
[1721151242336,5.19546,3462.8,3462.0,2.88843]
[1721151242550,5.19546,3462.8,3461.7,2.456]
[1721151242551,2.88817,3462.4,3461.7,5.34473]
[1721151242761,2.88817,3462.4,3461.7,2.456]
[1721151242925,2.88817,3462.4,3461.6,3.7944749]
[1721151242926,2.88825,3462.3,3461.4,5.7779]
[1721151243114,2.91817618,3462.3,3461.3,2.456]
[1721151243441,2.88847,3462.1,3461.3,5.34502]
[1721151243741,2.91847454,3462.0,3461.3,5.34502]
[1721151243921,3.46847454,3462.0,3461.3,5.34502]
[1721151244124,2.91847454,3462.0,3461.3,5.34502]
[1721151244327,0.55,3461.9,3461.3,5.34502]
[1721151244532,0.02996245,3461.8,3461.3,2.456]
[1721151244725,2.91863245,3461.8,3461.0,2.88933]
[1721151244927,0.55,3461.7,3461.0,2.88933]
[1721151245145,0.02992013,3461.6,3461.0,2.88933]
[1721151245322,0.55,3461.7,3461.0,2.88933]
[1721151245528,0.02992013,3461.6,3461.0,2.88933]
[1721151247731,0.02992013,3461.6,3461.1,2.88925]
[1721151248421,0.02992013,3461.6,3461.2,2.88916]
[1721151248741,0.55,3461.9,3461.3,5.34503]
[1721151248942,0.02985361,3461.5,3461.3,5.34503]
[1721151249247,0.55,3462.1,3461.4,3.712409]
[1721151249423,3.43842,3462.1,3461.4,3.712409]
[1721151250346,0.55,3462.1,3461.4,3.712409]
[1721151250519,2.12289736,3462.5,3461.8,2.88866]
[1721151250946,5.12289736,3462.5,3461.8,2.88866]
[1721151251252,3.0,3462.5,3461.8,2.88866]
[1721151251440,8.01098736,3462.5,3461.8,2.88866]
[1721151251954,0.55,3462.4,3461.8,2.88866]
[1721151252141,3.55,3462.4,3461.8,3.942634]
[1721151252542,5.67250613,3462.4,3461.8,1.053974]
[1721151252719,5.67250613,3462.4,3461.7,5.34474]
[1721151252919,3.55,3462.4,3461.7,5.34474]
[1721151253143,3.0,3462.4,3461.9,2.88857]
[1721151253351,5.12250613,3462.5,3461.9,2.88857]
[1721151253526,2.12250613,3462.4,3461.9,2.88857]
[1721151253733,5.12250613,3462.4,3461.9,2.88857]
[1721151254264,0.02875371,3462.3,3461.9,2.88857]
[1721151254463,5.12250613,3462.5,3462.0,2.8885]
[1721151254623,3.0,3462.5,3462.0,2.8885]
[1721151254823,0.02875371,3462.4,3462.1,2.8884]
[1721151255263,2.12250613,3462.6,3462.1,2.8884]
[1721151255464,0.02875371,3462.3,3462.1,2.8884]
[1721151255763,2.12250613,3462.6,3462.0,2.88849]
[1721151256381,0.02875371,3462.5,3462.1,2.88838]
[1721151257044,0.02875371,3462.5,3462.0,0.9056461]
[1721151257430,0.02875371,3462.5,3462.0,3.7940961]
[1721151257755,0.02875371,3462.5,3462.1,2.88841]
[1721151258139,2.12250613,3462.7,3462.1,2.88841]
[1721151258550,3.0,3462.8,3462.1,2.88841]
[1721151258551,0.02875371,3462.6,3462.1,2.88841]
[1721151259032,3.02875371,3462.6,3462.1,2.88841]
[1721151259738,3.02875371,3462.6,3462.2,2.88833]
[1721151259965,3.02875371,3462.6,3462.1,5.34441]
[1721151259966,0.02875371,3462.6,3462.4,2.88812]
[1721151260149,0.02875371,3462.6,3462.5,8.23216]
[1721151260570,2.12154431,3463.7,3463.3,2.88741]
[1721151260781,2.12154431,3463.8,3463.3,2.88741]
[1721151260931,0.02694515,3463.6,3463.3,2.88741]
[1721151261133,2.12154431,3463.9,3463.3,2.88741]
[1721151261353,0.02694515,3463.5,3463.3,2.88741]
[1721151261631,5.39277422,3464.2,3463.4,2.88732]
[1721151261632,2.8867,3464.2,3463.4,2.88732]
[1721151261831,2.11971888,3464.1,3463.4,2.88732]
[1721151262332,5.00646888,3464.1,3463.4,2.88732]
[1721151262528,5.00646888,3464.1,3463.2,2.456]
[1721151262875,2.88692,3463.9,3463.2,2.88749]
[1721151263162,0.55,3463.8,3463.2,2.88749]
[1721151264662,0.55,3463.9,3463.2,2.88749]
[1721151265456,3.43692,3463.9,3463.2,2.88749]
[1721151265669,0.55,3463.9,3463.4,2.88733]
[1721151265970,3.43683,3464.0,3463.3,2.88739]
[1721151266863,2.88699,3463.9,3463.1,2.456]
[1721151267170,0.55,3464.0,3462.8,2.88783]
[1721151267171,2.88721,3463.6,3462.8,2.88783]
[1721151268936,2.88752,3463.2,3462.3,5.34421]